{"text_format":"1","workbook":"xlsx","n_sheets":13,"sheets":["Acceuil","Budget","CC","CA","CV","CP","Cadres de Concertation","Tutelle","Marchés","Services Délégués","Autres données","Récapitulatif","Indicateurs"],"not_rendered":{"charts":0,"images":2,"macros":1,"external_links":0,"defined_names":0,"comments":0,"pivot_tables":0},"unopened":[],"bounds":{"document_bytes":16777216,"sheet_cells":100000,"rows_first":2000,"rows_last":500,"rows_between":2000,"halvings":0,"cell_chars":16384,"cell_head_chars":4096},"cells_cut":0,"cells_raw":0,"read":"whole","date_system":"1900"}

{"sheet":"Acceuil","index":0,"n_rows":23,"n_cols":16,"rows_kept":23,"cut":false,"hidden":false,"merged":[[6,4,6,18],[7,4,7,18],[9,4,9,18],[16,4,16,18]]}
[]
[]
[]
[]
[]
[]
[null,null,null,null,"COMITE INTERMINISTERIEL DE PILOTAGE DE LA POLITIQUE NATIONALE DE DECENTRALISATION ET DE DECONCENTRATION \n(CIP-PONADEC)"]
[null,null,null,null,"SECRETARIAT PERMANENT"]
[]
[null,null,null,null,"Calcul de l'Indice de bonne Gouvernance Locale (IGL)"]
[]
[null,null,null,null,null,"Département ","ATACORA",null,"Commune ","NATITINGOU",null,null,null,null,"Année : ",2019]
[]
[]
[]
[]
[null,null,null,null,"Informations à saisir par catégorie"]
[]
[null,null,null,null,null,null,"Budget",null,null,null,null,"Cadres de Concertation"]
[null,null,null,null,null,null,"Conseil Communal",null,null,null,null,"Tutelle"]
[null,null,null,null,null,null,"Conseil d'Arrondissement",null,null,null,null,"Marchés"]
[null,null,null,null,null,null,"Conseil de Village",null,null,null,null,"Services délégués"]
[null,null,null,null,null,null,"Commissions Permanentes",null,null,null,null,"Autres données"]

{"sheet":"Budget","index":1,"n_rows":5,"n_cols":14,"rows_kept":5,"cut":false,"hidden":false,"merged":[[1,0,1,2],[1,3,1,9],[1,10,1,13],[2,3,2,5],[2,0,3,0],[2,1,3,1],[2,2,3,2],[2,6,3,6],[2,7,3,7],[2,8,3,8],[2,9,3,9],[2,10,3,10],[2,11,3,11],[2,12,3,12],[2,13,3,13]]}
["Retour à l'accueil"]
["Prévision",null,null,"Réalisation",null,null,null,null,null,null,"Autres données financieres"]
["Montant du budget ","Recette fiscales","PAI","Dépenses d'investissement",null,null,"Dépenses totales de fonctionnement","Dépenses d'entretien des équipements et ouvrages","Recettes fiscales ","PAI ","Montant des ressources propres de l'année 2018","Montant des ressources propres de l'année 2019","Montant des cotisations versées à échéance (Intercommunalité et Association de communes)","Montant des cotisations dues à échéance (Intercommunalité et Association de communes)"]
[null,null,null,"Ressources propres (Auto financement)","Investissement provenant de la coopération décentralisée","Autres ressources"]
[851671398,222528881,2400000000,9350860,0,244161505,242359803,17585021,201593378,944975860,304526042,332683286,2970000]

{"sheet":"CC","index":2,"n_rows":9,"n_cols":9,"rows_kept":9,"cut":false,"hidden":false,"merged":[[0,0,0,5],[1,0,1,5],[2,0,2,2],[2,4,3,5],[3,0,3,2]]}
["Retour à l'accueil"]
["Tenue des Sessions ordinaires "]
["Nombre de réunions de municipalité tenues",null,null,12]
["Nombre d'élus du Conseil Communal",null,null,19]
["Sessions","Nombre d'élus présents","Date début session","Date fin session","Date affichage relevé session","Production du rapport d'activités du Maire ",null,"dif","delai"]
["Session N°1",19,"2019-03-27","2019-03-28","2019-04-05","OUI",null,{"$f":"IF(OR(D6=\"\",E6=\"\"),-1,DATEDIF(D6,E6,\"d\"))","v":8},{"$f":"IF(OR(H6<0,H6>8),0,1)","v":1}]
["Session N°2",17,"2019-06-26","2019-06-27","2019-07-08","OUI",null,{"$f":"IF(OR(D7=\"\",E7=\"\"),-1,DATEDIF(D7,E7,\"d\"))","v":11},{"$f":"IF(OR(H7<0,H7>8),0,1)","v":0}]
["Session N°3",19,"2019-09-26","2019-09-27","2019-10-07","OUI",null,{"$f":"IF(OR(D8=\"\",E8=\"\"),-1,DATEDIF(D8,E8,\"d\"))","v":10},{"$f":"IF(OR(H8<0,H8>8),0,1)","v":0}]
["Session N°4",18,"2019-11-26","2019-11-28","2019-12-09","OUI",null,{"$f":"IF(OR(D9=\"\",E9=\"\"),-1,DATEDIF(D9,E9,\"d\"))","v":11},{"$f":"IF(OR(H9<0,H9>8),0,1)","v":0}]

{"sheet":"CA","index":3,"n_rows":11,"n_cols":2,"rows_kept":11,"cut":false,"hidden":false,"merged":[[0,0,0,1]]}
["Retour à l'accueil"]
["Arrondissements","Nombre de sessions de conseils d’arrondissement tenues"]
["KOTOPOUNGA",12]
["KOUABA",12]
["KOUANDATA",9]
["PERMA",12]
["TCHOUMI-TCHOUMI",12]
["NATITINGOU I",12]
["NATITINGOU II",12]
["NATITINGOU III",12]
["PEPORIYAKOU",9]

{"sheet":"CV","index":4,"n_rows":80,"n_cols":5,"rows_kept":80,"cut":false,"hidden":false,"merged":[[53,0,58,0],[59,0,64,0],[65,0,72,0],[73,0,79,0],[4,0,17,0],[18,0,28,0],[29,0,33,0],[34,0,46,0],[47,0,52,0],[0,0,0,9],[2,3,2,4],[1,3,1,4],[1,2,3,2],[1,0,3,0],[1,1,3,1]]}
["Retour à l'accueil"]
["Arrondissements","Villages","Nombre de réunions de conseils de village tenues au cours de l’année","Section Villagoise\\urbaine de Gestion Fonctiere (SVGF et SUGF)"]
[null,null,null,"Enquetes Publiques Contradictoires (EPC)"]
[null,null,null,"Nombre de demandes effectuées","Nombre de demandes réalisées"]
["KOTOPOUNGA","BANGRETAMOU",4]
[null,"DOKONDE",4]
[null,"FAYOURE",4]
[null,"KAMPOUYA",4]
[null,"KOTA-MONNONGOU",4]
[null,"KOTOPOUNGA",4]
[null,"ONSIKOTO",4]
[null,"POUYA",4]
[null,"SOUROUKOU",4]
[null,"TAMPEDEMA",4]
[null,"TCHANTANGOU",4]
[null,"WETIPOUNGA",4]
[null,"YAKPANGOUTINGOU",4]
[null,"YARIKOU",4]
["KOUABA","DIKOUAN",4]
[null,"KATANGINKA",4]
[null,"KOUABA",4]
[null,"KOUKOUABIRGOU",4]
[null,"KOUNITCHANGOU",4]
[null,"KOUTANONGOU",4]
[null,"KOUWANWANGOU",4]
[null,"MOUSSANSAMOU",4]
[null,"TAGAHEI",4]
[null,"TEDONTE",4]
[null,"TIPETI",4]
["KOUANDATA","KOUANDATA",4]
[null,"KOUATIDABIRGOU",4]
[null,"KOUNADORGOU",4]
[null,"KOUTIE",4]
[null,"TIGNINTI",4,4,4]
["PERMA","GNAGNAMMOU",4]
[null,"KOKA",4]
[null,"KOUBIRGOU",4]
[null,"KOUETENA",3]
[null,"KOUNAPEIGOU",3]
[null,"KOUPEICO",4]
[null,"KOUSSIGOU",4]
[null,"PAM-PAM",4,5,5]
[null,"PERMA CENTRE",4]
[null,"SINAICIRE",4]
[null,"TENOUNKONTE",4]
[null,"TEPENTE",4]
[null,"TIGNANPETI",4,3,3]
["TCHOUMI-TCHOUMI","KOUTIE TCHATIDO",4]
[null,"KOUWA N'PONGOU",3]
[null,"MOUPEMOU",4]
[null,"TAKONTA",4]
[null,"TCHOUMI-TCHOUMI",4]
[null,"WIMMOU",4]
["NATITINGOU I","BAGRI",4]
[null,"DJINDJIRE-BERI",4]
[null,"KANTCHAGOUTAMOU",4]
[null,"SOUNTCHIRANTIKOU",4]
[null,"TCHIRIMINA",4]
[null,"YOKOSSI",4,1,1]
["NATITINGOU II","BOKORO",4]
[null,"BORIYOURE",4]
[null,"DASSAKATE",4]
[null,"OURKPARBOU",4]
[null,"OUROUBONNA",4]
[null,"SANTA",4]
["NATITINGOU III","BERECINGOU",4]
[null,"DIDAPOUMBOR",4]
[null,"KANTABORIFA",4]
[null,"KOUSSANTIKOU",4]
[null,"OURBOUGA",4]
[null,"WINKE",4,2,2]
[null,"YETAPO",4,1,1]
[null,"YIMPORIMA",4]
["PEPORIYAKOU","DITAWAN",4]
[null,"DOYAKOU",4]
[null,"KOUDENGOU",4]
[null,"PEPORIYAKOU",4]
[null,"TETANTE",4]
[null,"TIKOUANI",4]
[null,"TOROUBOU",4]

{"sheet":"CP","index":5,"n_rows":16,"n_cols":42,"rows_kept":16,"cut":false,"hidden":false,"merged":[[2,33,2,35],[2,36,2,38],[2,0,3,0],[2,1,3,1],[2,2,3,2],[1,0,1,2],[1,3,1,38],[2,3,2,5],[2,6,2,8],[2,9,2,11],[2,12,2,14],[2,15,2,17],[2,18,2,20],[2,21,2,23],[2,24,2,26],[2,27,2,29],[2,30,2,32]]}
["Retour à l'accueil"]
["Tenue des sessions ordinaires des commissions permanentes"]
["Commissions permanentes (CP)","Nom de la commission","Effectif des membres ","Réunion N°1",null,null,"Réunion N°2",null,null,"Réunion N°3",null,null,"Réunion N°4",null,null,"Réunion N°5",null,null,"Réunion N°6",null,null,"Réunion N°7",null,null,"Réunion N°8",null,null,"Réunion N°9",null,null,"Réunion N°10",null,null,"Réunion N°11",null,null,"Réunion N°12"]
[null,null,null,"Nombre de membres presents ","Nombre de propositions faites ","Nombre de propositions réalisées par le Maire","Nombre de membres presents ","Nombre de propositions faites ","Nombre de propositions réalisées par le Maire","Nombre de membres presents ","Nombre de propositions faites ","Nombre de propositions réalisées par le Maire","Nombre de membres presents ","Nombre de propositions faites ","Nombre de propositions réalisées par le Maire","Nombre de membres presents ","Nombre de propositions faites ","Nombre de propositions réalisées par le Maire","Nombre de membres presents ","Nombre de propositions faites ","Nombre de propositions réalisées par le Maire","Nombre de membres presents ","Nombre de propositions faites ","Nombre de propositions réalisées par le Maire","Nombre de membres presents ","Nombre de propositions faites ","Nombre de propositions réalisées par le Maire","Nombre de membres presents ","Nombre de propositions faites ","Nombre de propositions réalisées par le Maire","Nombre de membres presents ","Nombre de propositions faites ","Nombre de propositions réalisées par le Maire","Nombre de membres presents ","Nombre de propositions faites ","Nombre de propositions réalisées par le Maire","Nombre de membres presents ","Nombre de propositions faites ","Nombre de propositions réalisées par le Maire"]
["CP N°1","Commission des Affaires Economiques et Financieres (CAEF)",3,3,3,3,3,2,2,3,4,3,3,2,2,3,1,1,3,3,3,3,2,1,3,2,2,3,1,1,3,4,3,3,2,2,3,3,3,null,null,{"$f":"C5*COUNTA(D5,G5,J5,M5,S5,V5,Y5,AB5,AE5,AH5,AK5)","v":33}]
["CP N°2","Commission des Affaires Domaniales et Environnementales (CADE)",3,3,2,2,3,4,2,3,3,3,3,1,1,3,2,2,3,4,3,3,2,1,3,5,4,3,3,2,3,1,1,3,2,1,3,4,3,null,null,33]
["CP N°3","Commission des Affaires Sociales et Culturelles (CASC)",3,3,2,1,3,1,1,3,2,1,3,1,1,3,3,2,3,2,2,3,1,1,3,2,1,3,2,2,3,4,3,3,2,1,3,1,1,null,null,33]
["CP N°4","Commission Eau Hygiène Assainissement (CEHA)",2,2,4,3,2,3,1,2,4,3,2,2,1,2,1,1,2,3,1,2,2,1,2,4,2,2,2,2,2,1,1,2,3,1,2,1,1,null,null,22]
["CP N°5","Commission Economie Locale Artisanat et Tourisme (CELAT)",2,2,3,3,2,2,2,2,2,1,2,4,3,2,3,2,2,4,3,2,2,2,2,3,2,2,1,1,2,3,1,2,3,3,2,3,1,null,null,22]
["CP N°6","Commission des Affaires Sportives , Culturelles et Cultuelles (CASCC)",2,2,3,1,2,2,1,2,1,1,2,3,1,2,3,2,2,3,2,2,1,1,2,1,1,2,2,2,2,2,1,2,1,1,2,1,1,null,null,22]
["CP N°7","Commission des Relations Extérieures, de la Communication et de la Coopération Décentralisée (CRECCD)",2,2,4,1,2,2,1,2,2,1,2,1,1,2,5,2,2,4,1,2,3,1,2,1,1,2,3,1,2,1,1,2,2,1,2,4,2,null,null,22]
["CP N°8",null,null,null,null,null,null,null,null,null,null,null,null,null,null,null,null,null,null,null,null,null,null,null,null,null,null,null,null,null,null,null,null,null,null,null,null,null,null,null,null,0]
["CP N°9",null,null,null,null,null,null,null,null,null,null,null,null,null,null,null,null,null,null,null,null,null,null,null,null,null,null,null,null,null,null,null,null,null,null,null,null,null,null,null,null,0]
["CP N°10",null,null,null,null,null,null,null,null,null,null,null,null,null,null,null,null,null,null,null,null,null,null,null,null,null,null,null,null,null,null,null,null,null,null,null,null,null,null,null,null,0]
["Nombre",null,{"$f":"COUNT(C5:C14)","v":7},7,7,7,7,7,7,7,7,7,7,7,7,7,7,7,7,7,7,7,7,7,7,7,7,7,7,7,7,7,7,7,7,7,7,7,7,null,null,{"$f":"SUM(AP5:AP14)","v":187}]
["Effectif",null,{"$f":"SUM(C5:C14)","v":17},17,21,14,17,16,10,17,18,13,17,14,10,17,18,12,17,23,15,17,13,8,17,18,13,17,14,11,17,16,11,17,15,10,17,17,12]

{"sheet":"Cadres de Concertation","index":6,"n_rows":18,"n_cols":12,"rows_kept":18,"cut":false,"hidden":false,"merged":[[0,0,0,1],[6,3,17,11],[2,3,3,4],[1,0,1,11],[2,0,2,2],[2,5,2,11],[3,0,3,1],[4,0,4,1],[3,5,4,5],[3,6,4,6],[3,7,4,7],[3,8,4,8],[3,9,4,9],[3,10,4,10],[3,11,4,11],[5,3,5,4]]}
["Retour à l'accueil"]
["Tenue des Cadres de Concertation"]
[" Mairie-SDE",null,null,null,null,"Autres Cadres "]
["Effectif des membres du Cadre de Concertation Mairie-SDE",null,32,null,null,"Education","Eau, Hygiène et Assainissement","Agricole","Maire et OSC","Nutrition","Sport","Autres"]
["Nombre de sessions prévues",null,4]
["Sessions","Effectif présent","Date","Nombre de séances tenues",null,4,4,4,4,4,4,8]
["Session N°1",22,"2019-03-15"]
["Session N°2",26,"2019-06-21"]
["Session N°3",19,"2019-09-13"]
["Session N°4",23,"2019-12-20"]
["Session N°5"]
["Session N°6"]
["Session N°7"]
["Session N°8"]
["Session N°9"]
["Session N°10"]
["Session N°11"]
["Session N°12"]

{"sheet":"Tutelle","index":7,"n_rows":9,"n_cols":8,"rows_kept":9,"cut":false,"hidden":false,"merged":[[8,0,8,2],[0,0,0,3],[1,0,1,3],[2,0,2,1],[6,0,6,3],[7,0,7,2],[1,4,4,4],[1,5,1,6],[2,5,2,6],[3,5,3,6],[4,5,4,6],[5,4,8,4],[5,5,5,6],[6,5,6,6],[7,5,7,6],[8,5,8,6]]}
["Retour à l'accueil"]
["Participation aux CDCC",null,null,null,"Budget communal (Budget primitif)","Le budget est transmis ou pas.",null,"TRANSMIS"]
["Effectif (Maire et ses adjoints)",null,3,null,null,"Date d'adoption du budget",null,"2018-12-21"]
["Sessions","Effectif présent","Date début session","Date fin session",null,"Date de transmission du budget à la tutelle",null,"2018-12-22"]
["CDCC N°1",3,"2019-09-26","2019-09-27",null,"Date d'approbation du budget par la tutelle",null,"2018-12-28"]
["CDCC N°2",3,"2019-11-28","2019-11-29","Compte Administratif ","Le compte administratif est  transmis ou pas.",null,"TRANSMIS"]
["Conformité des actes",null,null,null,null,"Date d'adoption du compte administratif de l'année 2018",null,"2019-03-27"]
["Nombre d’actes conformes",null,null,204,null,"Date de transmission à la tutelle",null,"2019-04-05"]
["Nombre d’actes soumis pour approbation",null,null,204,null,"Date d'approbation du compte administratif par la tutelle",null,"2019-05-13"]

{"sheet":"Marchés","index":8,"n_rows":16,"n_cols":38,"rows_kept":16,"cut":false,"hidden":false,"merged":[[7,28,7,29],[7,30,7,31],[7,32,7,33],[7,34,7,35],[7,36,7,37],[7,18,7,19],[7,20,7,21],[7,22,7,23],[7,24,7,25],[7,26,7,27],[7,8,7,9],[7,10,7,11],[7,12,7,13],[7,14,7,15],[7,16,7,17],[6,28,6,29],[6,30,6,31],[6,32,6,33],[6,34,6,35],[6,36,6,37],[6,18,6,19],[6,20,6,21],[6,22,6,23],[6,24,6,25],[6,26,6,27],[6,8,6,9],[6,10,6,11],[6,12,6,13],[6,14,6,15],[6,16,6,17],[6,2,6,3],[6,4,6,5],[6,6,6,7],[6,0,8,0],[6,1,8,1],[7,2,7,3],[7,4,7,5],[7,6,7,7],[0,0,0,7],[5,0,5,3],[3,0,3,3],[2,0,2,3],[1,0,1,3],[1,5,5,5],[4,0,4,3]]}
["Retour à l'accueil"]
["Type de commune",null,null,null,"Commune ordinaire"]
["Plan de passation des marchés publics publiés",null,null,null,"OUI"]
["Nombre de marchés publics passés hors plan de passation des marchés ",null,null,null,0]
["Nombre de marchés conclus dans l'année",null,null,null,18]
["Nombre de marchés conclus dans l’année ayant respecté les procédures",null,null,null,16]
["Mode de passation","Délai de passation"," Marché N°1",null," Marché N°2",null," Marché N°3",null," Marché N°4",null," Marché N°5",null," Marché N°6",null," Marché N°7",null," Marché N°8",null," Marché N°9",null," Marché N°10",null," Marché N°11",null," Marché N°12",null," Marché N°13",null," Marché N°14",null," Marché N°15",null," Marché N°16",null," Marché N°17",null," Marché N°18"]
[null,null,"construction d'un ouvrage de franchissement sur la rivière de Korifaaka à Ourbona dans le 2ème Arrondissement ",null,"Construction d'infrastructure socolaire dans la commune de Natitingou  lot1: construction d'un (1) module de trois (3) salles de classes avec bureau et magasin et d'un (1) module de latrines à quatre (4) cabines à l'EPP Tignibti puis d'un (1) module de trois (3) salles de classes avec bureau et magasin et d'un module de latrines à quatre (4) cabines à l'EPP Boriyouré",null,"Construction d'amorce de clôture dans les marchés de Takonta, de Perma et de Yarikou",null,"Entretien courant des ITR Lot1: Axe Pèporiyakou Doyakou",null,"Entretien et réparation de  module de trois (3) sallesetavec bureau et magasin à Tchoumi-tchoumi et d'un module  de trois salles de  classes simple à l'EPP Koussantikou puis entretien d'une infrastructure de santé dans la commune ",null,"Construction d'un module de latrine à quatre cabine dans chacune des EPP Koutié Koubérépou Yimporima et Tignapéti et réabilitation du centre des jeunes et loisir de la ville de Natitingou et réparation des FPM en panne ",null,"Aquisition de 500 table-bancs 20 mini tables et 40 mini chaises au profit des EPP Souroukou, Koutanongou, Bantina, Tchirmina, Kouterna groupe B et l'EM Groupe B",null,"Equipement d'infrastructure scolaire en mobilier lot1 ",null,"Acquisition des pièce de rechange pour des pompes à motricité humaine",null,"Acquisition et livrason de fourniture de bureau au profit de l'adminstration communale de Natitingou gestion 2019",null,"Acquisition de  quatre ordinaire portatif au profit des service de la mairie",null,"Maintenance de parc informatique et des logiciel de la mairie de Natitingou",null,"Fourniture de valeur inactive au profit de la commune de Natitingou",null,"Recrutement d'une organisation non gouvernenmentale pour l'intermediation dans le domaine de l'approvisionnement en eau potable hygiène et assainissement",null,"Entretien courant des ITR Lot 2: Axe Yarikou-Takissari",null,"Construction d'infrastructure socolaire dans la commune de Natitingou  lot2: construction d'un (1) module de trois (3) salles de classes avec bureau et magasin et d'un (1) module de latrines à quatre (4) cabines à l'EPP Moussansamou puis d'un (1) module de trois (3) salles de classes avec bureau et magasin et d'un module de latrines à quatre (4) cabines à l'EPP Toroubou",null,"Construction d'infrastructure socolaire dans la commune de Natitingou  lot3: construction d'un (1) module de trois (3) salles de classes avec bureau et magasin et d'un (1) module de latrines à quatre (4) cabines à l'EPP Bèrècingou puis d'un (1) module de trois (3) salles de classes avec bureau et magasin et d'un module de latrines à quatre (4) cabines à l'EPP Tchirimina",null,"Construction d'infrastructure socolaire dans la commune de Natitingou  lot4: construction d'un (1) module de trois (3) salles de classes avec bureau et magasin et d'un (1) module de latrines à quatre (4) cabines à l'EPP Dokondé (Yantaré)"]
[null,86,"Type de marchés publics ","Nombre de jours consacrés à la passation","Type de marchés publics ","Nombre de jours consacrés à la passation","Type de marchés publics ","Nombre de jours consacrés à la passation","Type de marchés publics ","Nombre de jours consacrés à la passation","Type de marchés publics ","Nombre de jours consacrés à la passation","Type de marchés publics ","Nombre de jours consacrés à la passation","Type de marchés publics ","Nombre de jours consacrés à la passation","Type de marchés publics ","Type de marchés publics ","Nombre de jours consacrés à la passation","Type de marchés publics ","Nombre de jours consacrés à la passation","Type de marchés publics ","Nombre de jours consacrés à la passation","Type de marchés publics ","Nombre de jours consacrés à la passation","Type de marchés publics ","Type de marchés publics ","Nombre de jours consacrés à la passation","Type de marchés publics ","Nombre de jours consacrés à la passation","Type de marchés publics ","Nombre de jours consacrés à la passation","Type de marchés publics ","Nombre de jours consacrés à la passation","Type de marchés publics ","Type de marchés publics ","Nombre de jours consacrés à la passation","Nombre de jours consacrés à la passation"]
["Appel Offre Ouvert",46,"Travaux",44,"Travaux",44,"Travaux",45,"travaux",45,null,null,null,null,null,null,null,null,null,null,null,null,null,null,null,null,null,null,null,null,"travaux",45,"Travaux",45,"Travaux",44,"Travaux",44]
["Demande de renseignement",27,null,null,null,null,null,null,null,null,"travaux",27,"travaux",27,"service",27,"service",27]
["Demande de cotation",65,null,null,null,null,null,null,null,null,null,null,null,null,null,null,null,null,"service",38,"service",38,null,null,null,null,"service",38,"intellect",38]
[null,null,null,{"$f":"IF(C10=\"\",0,IF(D10<=$B10,1,0))","v":1},null,{"$f":"IF(E10=\"\",0,IF(F10<=$B10,1,0))","v":1},null,{"$f":"IF(G10=\"\",0,IF(H10<=$B10,1,0))","v":1}]
[null,null,null,{"$f":"IF(C11=\"\",0,IF(D11<=$B11,1,0))","v":0},null,{"$f":"IF(E11=\"\",0,IF(F11<=$B11,1,0))","v":0},null,{"$f":"IF(G11=\"\",0,IF(H11<=$B11,1,0))","v":0}]
[null,null,null,{"$f":"IF(C12=\"\",0,IF(D12<=$B12,1,0))","v":0},null,{"$f":"IF(E12=\"\",0,IF(F12<=$B12,1,0))","v":0},null,{"$f":"IF(G12=\"\",0,IF(H12<=$B12,1,0))","v":0}]
[null,null,null,{"$f":"SUM(D13:D15)","v":1},null,{"$f":"SUM(F13:F15)","v":1},null,{"$f":"SUM(H13:H15)","v":1}]

{"sheet":"Services Délégués","index":9,"n_rows":5,"n_cols":30,"rows_kept":5,"cut":false,"hidden":false,"merged":[[2,18,2,19],[1,18,1,25],[2,24,2,25],[2,20,2,21],[2,22,2,23],[1,26,2,27],[1,28,2,29],[0,0,0,21],[1,0,1,5],[1,6,1,17],[2,0,2,1],[2,2,2,3],[2,4,2,5],[2,6,2,7],[2,8,2,9],[2,10,2,11],[2,12,2,13],[2,14,2,15],[2,16,2,17]]}
["Retour à l'accueil"]
["EAU",null,null,null,null,null,"ASSAINISSEMENT",null,null,null,null,null,null,null,null,null,null,null,"SERVICES MARCHANDS",null,null,null,null,null,null,null,"PANNEAUX PUBLICITAIRES",null,"TOTAL"]
["AEV",null,"FPM",null,"PEA",null,"Entretien des voies urbaines",null,"Eclairage public",null,"Collecte et traitement des déchets",null,"Evacuation des eaux usées",null,"Gestion des cimétieres",null,"Gestion des espaces verts",null,"Gestion des marchés",null,"Gestion des abattoirs",null,"Promotion du tourisme",null,"Gestions des gares routieres"]
["PREVUES","DELEGUEES","PREVUES","DELEGUEES","PREVUES","DELEGUEES","PREVUS","DELEGUES","PREVUS","DELEGUES","PREVUS","DELEGUES","PREVUS","DELEGUES","PREVUS","DELEGUES","PREVUS","DELEGUES","PREVUS","DELEGUES","PREVUS","DELEGUES","PREVUS","DELEGUES","PREVUS","DELEGUES","PREVUS","DELEGUES","PREVUS","DELEGUES"]
[6,2,247,140,0,0,0,0,0,0,6,6,0,0,0,0,0,0,0,0,0,0,1,0,0,0,1,1,{"$f":"SUM(A5,C5,E5,G5,I5,K5,M5,O5,Q5,S5,U5,W5,Y5,AA5)","v":261},{"$f":"SUM(B5,D5,F5,H5,J5,L5,N5,P5,R5,T5,V5,X5,Z5,AB5)","v":149}]

{"sheet":"Autres données","index":10,"n_rows":37,"n_cols":4,"rows_kept":37,"cut":false,"hidden":false,"merged":[[27,0,27,1],[31,0,32,1],[33,0,34,1],[35,0,36,1],[20,0,21,1],[22,0,23,1],[24,0,25,1],[28,0,30,1],[0,0,0,3],[1,0,1,2],[18,0,18,1],[19,0,19,1],[26,0,26,1],[2,0,3,1],[4,0,5,1],[6,0,7,1],[8,0,9,1],[14,0,17,1],[10,0,13,0],[10,1,12,1],[13,1,13,2]]}
["Retour à l'accueil"]
["Données à collecter",null,null,"Valeurs"]
["Fonctionalité des services de la mairie",null,"Nombre de services prévus.",9]
[null,null,"Nombre de services fonctionnels",9]
["Manuel de procédure",null,"Existence du manuel de procédure","OUI"]
[null,null,"Manuel de procédure actualisé.","NON"]
["Evaluation du personnel",null,"Nombre de personnes évalué",49]
[null,null,"Effectif du personnel",49]
["Adequation profil/poste",null,"Nombre de postes occupés dans la commune",20]
[null,null,"Nombre d'agents dont le profil correspond au poste occupé",16]
["Données Foncieres","Commission de Gestion foncière (COGEF)","Existence de la COGEF","OUI"]
[null,null,"Nombre d'Attestation de  Détention Coutumiere (ADC) demandé",16]
[null,null,"Nombre d'Attestation de  Détention Coutumiere (ADC) traité",16]
[null,"Nombre de contentieux fonciers impliquant la commune",null,4]
["Système d'information ",null,"Existence d’un système de classement et d’archivage","OUI"]
[null,null,"Existence d’une personne en charge du classement des archivages"]
[null,null,"Existence d’un local dédié à l’archivage","OUI"]
[null,null,"Existence de documents archivés.","OUI"]
["Nombre de délégations",null,"Nombre de délégations de signature pris.",3]
["Attributions  de pouvoir",null,"Nombre d'attributions  de pouvoir pris.",2]
["Séances de reddition de comptes",null,"Nombre   de séances tenues",2]
[null,null,"Nombre de séances prévues.",2]
["Activités spécifiques en faveur des femmes ",null,"Nombre  d’activités spécifiques réalisées en faveur des femmes ",23]
[null,null,"Nombre d’activités réalisées dans le PTA",115]
["Informations sur les prestations de la commune",null,"Existence d’un lieu publique dédié à l'informations sur les prestations de la commune","OUI"]
[null,null,"Existence d'une personne en charge de l'information","OUI"]
["SDAC en cours de validité",null,"Existence  ou non d'un SDAC ","OUI"]
["PDC en cours de validité",null,"Existence ou non d’un PDC","OUI"]
["Suivi évaluation des PTA/PAI/PAD",null,"Nombre de séances de suivi évaluation des PTA",2]
[null,null,"Nombre de séances de suivi évaluation des PAI",2]
[null,null,"Nombre de séances de suivi évaluation des PAD"]
["Infrastructures économiques et marchandes",null,"Nombre réalisées en année 2019",16]
[null,null,"Nombre réalisées en année 2018",12]
["TBS",null,"Existence  d’un TBS actualisé ","OUI"]
[null,null,"Date d’actualisation","2019-07-19"]
["Coopération décentralisée",null,"Nombre  d’accord actif",2]
[null,null,"Nombre d’activités réalisées provenants de ces accords ",12]

{"sheet":"Récapitulatif","index":11,"n_rows":93,"n_cols":6,"rows_kept":93,"cut":false,"hidden":true,"merged":[[91,0,91,1],[92,0,92,1],[79,0,79,1],[80,0,80,1],[85,0,85,1],[88,0,88,1],[90,0,90,1],[86,0,86,1],[87,0,87,1],[89,0,89,1],[84,0,84,1],[35,0,37,0],[78,0,78,1],[81,0,81,1],[82,0,82,1],[83,0,83,1],[73,0,73,1],[74,0,74,1],[75,0,75,1],[76,0,76,1],[77,0,77,1],[68,0,68,1],[69,0,69,1],[70,0,70,1],[71,0,71,1],[72,0,72,1],[63,0,63,1],[64,0,64,1],[65,0,65,1],[66,0,66,1],[67,0,67,1],[58,0,58,1],[59,0,59,1],[60,0,60,1],[61,0,61,1],[62,0,62,1],[53,0,53,1],[54,0,54,1],[55,0,55,1],[56,0,56,1],[57,0,57,1],[48,0,48,1],[49,0,49,1],[50,0,50,1],[51,0,51,1],[52,0,52,1],[43,0,43,1],[44,0,44,1],[45,0,45,1],[46,0,46,1],[47,0,47,1],[38,0,38,1],[39,0,39,1],[40,0,40,1],[41,0,41,1],[42,0,42,1],[30,0,30,1],[31,0,31,1],[32,0,32,1],[33,0,33,1],[34,0,34,1],[25,0,25,1],[26,0,26,1],[27,0,27,1],[28,0,28,1],[29,0,29,1],[20,0,20,1],[21,0,21,1],[22,0,22,1],[23,0,23,1],[24,0,24,1],[15,0,15,1],[16,0,16,1],[17,0,17,1],[18,0,18,1],[19,0,19,1],[10,0,10,1],[11,0,11,1],[12,0,12,1],[13,0,13,1],[14,0,14,1],[5,0,5,1],[6,0,6,1],[7,0,7,1],[8,0,8,1],[9,0,9,1],[0,0,0,1],[1,0,1,1],[2,0,2,1],[3,0,3,1],[4,0,4,1]]}
["Données à traiter",null,"Valeurs"]
["Nombre de sessions ordinaires tenues",null,{"$f":"COUNTA(CC!C6:C9)","v":4}]
["Nombre de services prévus.",null,{"$f":"'Autres données'!D3","v":9}]
["Nombre de services existant doté en personnel.",null,{"$f":"'Autres données'!D4","v":9}]
["Nombre d’élus du conseil communal",null,{"$f":"CC!D4","v":19}]
["Nombre de conseillers présents à chaque conseil communal",null,{"$f":"SUMIF(CC!C6:C9,\"<>\",CC!B6:B9)","v":73}]
["Existence du manuel de procédure actualisé.",null,{"$f":"IF(OR('Autres données'!D5=\"NON\",'Autres données'!D5=\"\"),0,IF('Autres données'!D6=\"OUI\",1,0.5))","v":0.5}]
["Nombre de fiches d’évaluation du personnel évalué dans l’année.",null,{"$f":"'Autres données'!D7","v":49}]
["Nombre de personnes à évaluer.",null,{"$f":"'Autres données'!D8","v":49}]
["Nombre de commissions permanentes existantes.",null,{"$f":"CP!C15","v":7}]
["Nombre de sessions des commissions permamentes",null,{"$f":"SUM(CP!D15,CP!G15,CP!J15,CP!M15,CP!P15,CP!V15,CP!Y15,CP!AB15,CP!AE15,CP!AH15,CP!AK15)","v":77}]
["Nombre présents commission permanente",null,{"$f":"SUM(CP!D16,CP!G16,CP!J16,CP!M16,CP!P16,CP!V16,CP!Y16,CP!AB16,CP!AE16,CP!AH16,CP!AK16)","v":187}]
["Nombre de propositions formulées par les commissions permanentes",null,{"$f":"SUM(CP!E16,CP!H16,CP!K16,CP!N16,CP!Q16,CP!T16,CP!W16,CP!Z16,CP!AC16,CP!AF16,CP!AI16,CP!AL16)","v":203}]
["Nombre de propositions formulées par les commissions permanentes réalisées.",null,{"$f":"SUM(CP!F16,CP!I16,CP!L16,CP!O16,CP!R16,CP!U16,CP!X16,CP!AA16,CP!AD16,CP!AG16,CP!AJ16,CP!AM16)","v":139}]
["Nombre de postes occupés",null,{"$f":"'Autres données'!D9","v":20}]
["Nombre de postes occupés correspondant au profil recherché",null,{"$f":"'Autres données'!D10","v":16}]
["Existence ou non d’un système de documentation et d’archivage",null,{"$f":"IF('Autres données'!D15=\"OUI\",1,0)","v":1}]
["Existence ou non d’une personne en charge de la documentation et d’archivage",null,{"$f":"IF('Autres données'!D16=\"OUI\",1,0)","v":0}]
["Existence ou non d’un local dédié à la documentation et d’archivage",null,{"$f":"IF('Autres données'!D17=\"OUI\",1,0)","v":1}]
["Existence ou non de document archivés.",null,{"$f":"IF('Autres données'!D18=\"OUI\",1,0)","v":1}]
["Nombre de services publics susceptibles d’être délégués",null,{"$f":"'Services Délégués'!AC5","v":261}]
["Nombre de services publics délégués dans l’année",null,{"$f":"'Services Délégués'!AD5","v":149}]
["Nombre total de rapports produits dans l’année",null,{"$f":"COUNTIF(CC!F6:F9,\"=OUI\")","v":4}]
["Nombre total de rapports à produire dans l’année.",null,{"$f":"C2","v":4},"nombre de session dans l'année =4"]
["Nombre de réunions de la municipalité ",null,{"$f":"CC!D3","v":12}]
["Nombre de réunions prévues",null,12,"limité à 12"]
["Nombre total de sessions de conseils d’arrondissement tenues au cours de l’année",null,{"$f":"SUM(CA!B3:B50)","v":102},"somme dans CA"]
["Nombre d’arrondissements",null,9]
["Nombre total de réunions de conseils de village tenues au cours de l’année",null,{"$f":"SUM(CV!C5:C100)","v":301},"somme d&ns CV"]
["Nombre de villages",null,76]
["Nombre de documents ou d’arrêtés  portant délégation de signature pris.",null,{"$f":"'Autres données'!D19","v":3}]
["Nombre de document ou arrêtés portant délégation de pouvoir pris.",null,{"$f":"'Autres données'!D20","v":2}]
["Montant du budget prévisionnel",null,{"$f":"Budget!A5","v":851671398}]
["Montant du Budget Consommé",null,{"$f":"E37+C39","v":495872168}]
["Recette fiscales previsionnelles",null,{"$f":"Budget!B5","v":222528881}]
["Dépenses d'investissement","Ressources propres",{"$f":"Budget!D5","v":9350860}]
[null,"Investissement provenant de la coopération décentralisée",{"$f":"Budget!E5","v":0},null,{"$f":"SUM(C36:C38)","v":253512365}]
[null,"Autres ressources",{"$f":"Budget!F5","v":244161505}]
["Dépenses totales de fonctionnement",null,{"$f":"Budget!G5","v":242359803}]
["Dépenses d'entretien des équipements et ouvrages",null,{"$f":"Budget!H5","v":17585021}]
["Montant des ressources propres de l'année n-1",null,{"$f":"Budget!K5","v":304526042}]
["Montant des ressources propres de l'année n",null,{"$f":"Budget!L5","v":332683286}]
["Recettes fiscales recouvrées",null,{"$f":"Budget!I5","v":201593378}]
["Montant des cotisations versées à échéance",null,{"$f":"Budget!M5","v":2970000}]
["Montant des cotisations dues à échéance",null,{"$f":"Budget!N5","v":0}]
["Nombre de marchés conclus dans l’année",null,{"$f":"Marchés!E5","v":18}]
[{"$f":"Marchés!A3","v":"Plan de passation des marchés publics publiés"},null,{"$f":"IF(Marchés!E3=\"OUI\",1,0)","v":1}]
[{"$f":"Marchés!A4:D4","v":""},null,{"$f":"Marchés!E4","v":0},{"$f":"IF(Marchés!E4=\"\",0,IF(Marchés!E4=0,1,0))","v":1}]
["Nombre de marchés conclus dans l’année et ayant respecté les procédures.",null,{"$f":"Marchés!E6","v":16}]
["Délai moyen de passation des marchés publics communaux",null,{"$f":"IF(C46=0,0,D50/C46)","v":0.16666666666666666},{"$f":"SUM(Marchés!$D$16:$XZ$16)","v":3}]
["Nombre de fois où les relevés des délibérations affichés ",null,{"$f":"COUNTA(CC!E6:E9)","v":4}]
["Délai d’affichage",null,{"$f":"SUM(CC!I6:I9)/C2","v":0.25},"8 jours maxi aprs la fin de la session"]
["Nombre de séances de reddition de comptes",null,{"$f":"'Autres données'!D21","v":2}]
["Nombre de séances de reddition de comptes prévus.",null,{"$f":"'Autres données'!D22","v":2}]
["Nombre d’actions spécifiques réalisées en faveur des femmes",null,{"$f":"'Autres données'!D23","v":23}]
["Nombre d’actions spécifiques réalisées dans le PTA",null,{"$f":"'Autres données'!D24","v":115}]
[{"$f":"'Autres données'!C25","v":"Existence d’un lieu publique dédié à l'informations sur les prestations de la commune"},null,{"$f":"IF('Autres données'!D25=\"OUI\",1,0)","v":1}]
[{"$f":"'Autres données'!C26","v":"Existence d'une personne en charge de l'information"},null,{"$f":"IF('Autres données'!D26=\"OUI\",1,0)","v":1}]
["Nombre de cadres de concertation.",null,{"$f":"COUNTA('Cadres de Concertation'!F6:L6)","v":7},{"$f":"IF(C59<=0,0,IF(C59>3,1,C59/4))","v":1}]
["Nombre moyen de réunions du cadre de concertation tenu",null,{"$f":"SUM('Cadres de Concertation'!F6:L6)/C59","v":4.5714285714285712},{"$f":"IF(C60<=0.5,0,IF(C60<1.5,0.25,IF(C60<2.5,0.5,IF(C60<4,0.75,1))))","v":1}]
["Existence ou non d’un SDAC.",null,{"$f":"IF('Autres données'!D27=\"OUI\",1,0)","v":1}]
["Existence ou non d’un PDC",null,{"$f":"IF('Autres données'!D28=\"OUI\",1,0)","v":1}]
["Montant PAI prévision",null,{"$f":"Budget!C5","v":2400000000}]
["Montant PAI réalisé",null,{"$f":"Budget!J5","v":944975860}]
["Nombre de séances de suivi évaluation des PTA/PAI/PAD",null,{"$f":"SUM('Autres données'!D29:D31)","v":4}]
["Nombre d’infrastructures économiques et marchandes réalisées en année n",null,{"$f":"'Autres données'!D32","v":16}]
["Nombre d’infrastructures économiques et marchandes réalisées en année n-1",null,{"$f":"'Autres données'!D33","v":12}]
["Nombre d'EPC demandé (village)",null,{"$f":"SUM(CV!D5:D191)","v":16},null,null,"somme"]
["Nombre d'EPC réalisé (Village)",null,{"$f":"SUM(CV!E5:E191)","v":16}]
["Nombre de ADC demandé (Commune-Autre données)",null,{"$f":"'Autres données'!D12","v":16}]
["Nombre de ADC réalisé (Commune-Autre données)",null,{"$f":"'Autres données'!D13","v":16}]
["Existence ou inexistence d’un tableau de bord social actualisé ",null,{"$f":"IF('Autres données'!D34=\"OUI\",1,0)","v":1}]
["Date d’actualisation du tableau de bord social",null,{"$f":"'Autres données'!D35","v":"2019-07-19"}]
["Existence d'un tableau de bord",null,{"$f":"'Autres données'!D34","v":"OUI"}]
["Nombre  d’ accord de coopération décentralisée.",null,{"$f":"IF('Autres données'!D36<1,0,IF('Autres données'!D36=1,0.5,1))","v":1}]
["Nombre d’activités des accords de coopération décentralisées réalisées.",null,{"$f":"IF('Autres données'!D37<1,0,IF('Autres données'!D37<3,0.5,1))","v":1}]
["Nombre de conflits fonciers impliquant la commune",null,{"$f":"IF('Autres données'!D14=\"\",\"\",'Autres données'!D14)","v":4},{"$f":"IF(C77=\"\",0,IF(C77=0,1,IF(C77<=3,0.75,IF(C77<=8,0.5,IF(C77<=15,0.25,0)))))","v":0.5}]
["Nombre de participation du maire ou de son représentant au CDCC au cours de l’année",null,{"$f":"COUNTIF(Tutelle!B5:B6,\">0\")","v":2},"feuille tutelle (compter le nombre de lignes 5 ou 6 rempli"]
["Nombre de CDCC tenus dans l’année.",null,{"$f":"COUNTA(Tutelle!C5:C6)","v":2},"fixer à 2"]
["Nombre total de présence du maire ou de ses adjoints au CDCC",null,{"$f":"SUMIF(Tutelle!C5:C6,\"<>\",Tutelle!B5:B6)","v":6}]
["Nombre total attendu (Maire et ses adjoints) pour toutes les sessions",null,{"$f":"C79*Tutelle!C3","v":6}]
["Nombre d’actes communaux conformes en une année",null,{"$f":"Tutelle!D8","v":204}]
["Nombre d’actes communaux soumis à la tutelle en un an",null,{"$f":"Tutelle!D9","v":204}]
["Le budget est transmis ou pas.",null,{"$f":"IF(Tutelle!H2=\"TRANSMIS\",1,0)","v":1}]
["Délai de transmission du budget après adoption par le conseil communal",null,{"$f":"IF(Budget!Q5=\"\",0,IF(Budget!Q5<=DATE(Acceuil!P12,3,31),1,0))","v":0}]
["Délai d'approbation du budget par la tutelle",null,{"$f":"IF(OR(Tutelle!H4=\"\",Tutelle!H5=\"\"),0,IF(Tutelle!H5<=EDATE(Tutelle!H4,1),1,0))","v":1},"si<1mois, 1, 0 sinon"]
["Le compte administratif est  transmis ou pas.",null,{"$f":"IF(Tutelle!H6=\"TRANSMIS\",1,0)","v":1}]
["Délai de transmission du compte administratif  après adoption par le conseil communal",null,{"$f":"IF(Tutelle!H7=\"\",0,IF(Tutelle!H7<=DATE(Acceuil!P12+1,6,30),1,0))","v":1}]
["Délai d'approbation du compte administratif  par la tutelle",null,{"$f":"IF(OR(Tutelle!H8=\"\",Tutelle!H9=\"\"),0,IF(Tutelle!H9<=EDATE(Tutelle!H8,1),1,0))","v":0}]
["Nombre de réunions du cadre de concertation  prévu (Mairie + SDE)",null,{"$f":"'Cadres de Concertation'!C5","v":4}]
["Nombre de réunions du cadre de concertation  tenu (Mairie + SDE)",null,{"$f":"COUNTA('Cadres de Concertation'!C7:C18)","v":4},null,{"$f":"C91/C90","v":1},{"$f":"C92/C93","v":0.703125}]
["Nombre total des membres présents (Mairie + SDE)",null,{"$f":"SUMIF('Cadres de Concertation'!C7:C18,\"<>\",'Cadres de Concertation'!B7:B18)","v":90}]
["Nombre total des membres attendus (Mairie + SDE)",null,{"$f":"'Cadres de Concertation'!C4*Récapitulatif!C91","v":128}]

{"sheet":"Indicateurs","index":12,"n_rows":45,"n_cols":4,"rows_kept":45,"cut":false,"hidden":true,"merged":[[0,0,14,0],[15,0,25,0],[26,0,30,0],[31,0,39,0],[40,0,44,0]]}
["D1",1,"Taux de realisation des sessions ordinaires du conseil communal",{"$f":"Récapitulatif!C2/4","v":1}]
[null,2,"Taux de services fonctionnels",{"$f":"Récapitulatif!C4/Récapitulatif!C3","v":1}]
[null,3,"Taux de participation des élus aux conseils communaux",{"$f":"Récapitulatif!C6/(Récapitulatif!C5*Récapitulatif!C2)","v":0.96052631578947367}]
[null,4,"Existance d'un manuel de procedure à jour",{"$f":"Récapitulatif!C7","v":0.5}]
[null,5,"Taux de personnes évaluées",{"$f":"Récapitulatif!C8/Récapitulatif!C9","v":1}]
[null,6,"Taux de commissions permanentes fonctionnelles",{"$f":"((Récapitulatif!C11/Récapitulatif!C10)+(Récapitulatif!C12/CP!AP15)+(Récapitulatif!C14/Récapitulatif!C13))/3","v":4.2282430213464695}]
[null,7,"Taux d'adéquation profil/poste",{"$f":"Récapitulatif!C16/Récapitulatif!C15","v":0.8}]
[null,8,"Fonctionalité du système de classement et d'archivage",{"$f":"SUM(Récapitulatif!C17:C20)/4","v":0.75}]
[null,9,"Taux de services publics locaux en gestion déléguée",{"$f":"Récapitulatif!C22/Récapitulatif!C21","v":0.57088122605363989}]
[null,10,"Taux de realisation des rapports d'activités du maire",{"$f":"Récapitulatif!C23/Récapitulatif!C24","v":1}]
[null,11,"Taux de tenu des reunions de municipalité",{"$f":"Récapitulatif!C25/Récapitulatif!C26","v":1}]
[null,12,"Taux moyen de tenue des sessions du conseil d'arrondissement",{"$f":"Récapitulatif!C27/Récapitulatif!C28","v":11.333333333333334}]
[null,13,"Taux moyen de tenue des sessions du conseil de villages",{"$f":"Récapitulatif!C29/Récapitulatif!C30","v":3.9605263157894739}]
[null,14,"Nombre de délégation de signature du maire aux adjoints",{"$f":"Récapitulatif!C31","v":3}]
[null,15,"Nombre de délégation de pouvoir éffectué par le maire",{"$f":"Récapitulatif!C32","v":2}]
["D2",1,"Taux d'éxecution du budget communal",{"$f":"Récapitulatif!C34/Récapitulatif!C33","v":0.58223414472350288}]
[null,2,"Taux d'autofinancement des Investissements",{"$f":"Récapitulatif!C36/Récapitulatif!E37","v":3.6885222541314704E-2}]
[null,3,"Part des Investissements dans les dépenses totales de la commune",{"$f":"Récapitulatif!E37/Récapitulatif!C34","v":0.51124540024597631}]
[null,4,"Part des dépenses d'entretien des équipements et ouvrages dans les depenses de fonctionnement",{"$f":"Récapitulatif!C40/Récapitulatif!C39","v":7.2557498324092959E-2}]
[null,5,"Adoption du budget dans les délais",{"$f":"IF(Tutelle!H3=\"\",0,IF(Tutelle!H3<DATE(Acceuil!P12,1,1),1,0))","v":1}]
[null,6,"Respect du délai de vote du compte administratif",{"$f":"IF(Tutelle!H7=\"\",0,IF(Tutelle!H7<=DATE(Acceuil!P12,6,30),1,0))","v":1}]
[null,7,"Taux d'accroissement des ressources propres",{"$f":"(Récapitulatif!C42-Récapitulatif!C41)/Récapitulatif!C41","v":9.2462515898722383E-2}]
[null,8,"Taux de recouvrement fiscal",{"$f":"Récapitulatif!C43/Récapitulatif!C35","v":0.90592006347257015}]
[null,9,"délai moyen de passation des marchés publics communaux",{"$f":"Récapitulatif!C50/Récapitulatif!C46","v":9.2592592592592587E-3}]
[null,10,"Existance des plans de passation des marchés validés et publiés",{"$f":"(Récapitulatif!C47+Récapitulatif!D48)/2","v":1}]
[null,11,"Ratio des marchés publics ayant respecté les procédures",{"$f":"Récapitulatif!C49/Récapitulatif!C46","v":0.88888888888888884}]
["D3",1,"Affichage des relevés des décisions du Conseil Communal dans les délai",{"$f":"((Récapitulatif!C51/Récapitulatif!C2)+Récapitulatif!C52)/2","v":0.625}]
[null,2,"Taux de réalisation des seances de reddition de compte",{"$f":"Récapitulatif!C53/Récapitulatif!C54","v":1}]
[null,3,"Nombre d'actions spécifiques en faveur des femmes au cours de l'année",{"$f":"Récapitulatif!C55/Récapitulatif!C56","v":0.2}]
[null,4,"Existance d'un mecanisme d'information du public par rapport aux prestations de la commune",{"$f":"(Récapitulatif!C57+Récapitulatif!C58)/2","v":1}]
[null,5,"Nombre de cadre de concertation fonctionnel",{"$f":"(Récapitulatif!D59+Récapitulatif!D60)/2","v":1}]
["D4",1,"Existance d'un SDAC",{"$f":"Récapitulatif!C61","v":1}]
[null,2,"Existance d'un PDC",{"$f":"(Récapitulatif!C62+(Récapitulatif!C64/Récapitulatif!C63))/2","v":0.69686997083333335}]
[null,3,"Nombre de reunions de suivi-évaluation du PTA/PAI/PAD",{"$f":"Récapitulatif!C65","v":4}]
[null,4,"Taux d'accroissement des infrastructures économiques et marchandes",{"$f":"(Récapitulatif!C66-Récapitulatif!C67)/Récapitulatif!C67","v":0.33333333333333331}]
[null,5,"Fonctionalité des organes de gestion fonciere aux niveaux communal et infra communal",{"$f":"((Récapitulatif!C69/Récapitulatif!C68)+(Récapitulatif!C71/Récapitulatif!C70))/2","v":1}]
[null,6,"Existance d'un tableau de bord social actualisé",{"$f":"Récapitulatif!C72","v":1}]
[null,7,"Nombre d'accord de cooperation decentralisée mise en œuvre ",{"$f":"(Récapitulatif!C75+Récapitulatif!C76)/2","v":1}]
[null,8,"Taux de paiement des cotisations de la commune à l'intercommunalité",{"$f":"IF(Récapitulatif!C45=0,0,Récapitulatif!C44/Récapitulatif!C45)","v":0}]
[null,9,"Nombre de contentieux fonciers impliquant la Mairie",{"$f":"Récapitulatif!D77","v":0.5}]
["D5",1,"Nombre de participations au CDCC",{"$f":"((Récapitulatif!C78/Récapitulatif!C79)+(Récapitulatif!C80/Récapitulatif!C81))/2","v":1}]
[null,2,"Taux de conformité des actes communaux",{"$f":"IF(Récapitulatif!C83=0,0,Récapitulatif!C82/Récapitulatif!C83)","v":1}]
[null,3,"Transmission du budget dans les délais",{"$f":"SUM(Récapitulatif!C84:C86)/3","v":0.66666666666666663}]
[null,4,"Transmission du compte administratif dans les délais",{"$f":"SUM(Récapitulatif!C87:C89)/3","v":0.66666666666666663}]
[null,5,"Animation d'un cadre de concertation entre le maire et les services déconcentrés communaux",{"$f":"(Récapitulatif!E91+Récapitulatif!F91)/2","v":0.8515625}]